[Event "*** Titled Tuesday Blitz"]
[Site "Chess.com"]
[Date "2020.11.10"]
[Round "8"]
[White "BegmuratovKh2010"]
[Black "temus_galaktionov"]
[Result "1-0"]
[WhiteElo "2470"]
[BlackElo "2611"]
[TimeControl "180+1"]
[EndTime "11:32:15 PST"]
[Termination "BegmuratovKh2010 won by checkmate"]

1. d4 {[%clk 0:03:00.9]} 1... c6 {[%clk 0:03:00.9]} 2. c4 {[%clk 0:03:00.4]}
2... g6 {[%clk 0:03:01.8]} 3. Nf3 {[%clk 0:03:00.2]} 3... Bg7 {[%clk 0:03:02.7]}
4. g3 {[%clk 0:03:00.5]} 4... d6 {[%clk 0:03:03.6]} 5. Bg2 {[%clk 0:03:00.6]}
5... Nd7 {[%clk 0:03:04.5]} 6. O-O {[%clk 0:03:00.7]} 6... Ngf6 {[%clk
0:03:05.4]} 7. Nc3 {[%clk 0:03:00.9]} 7... O-O {[%clk 0:03:06.3]} 8. e4 {[%clk
0:03:00.8]} 8... e5 {[%clk 0:03:06.2]} 9. d5 {[%clk 0:02:59.4]} 9... c5 {[%clk
0:03:05.7]} 10. Ne1 {[%clk 0:02:55.7]} 10... Ne8 {[%clk 0:03:05.8]} 11. Nd3
{[%clk 0:02:55.2]} 11... f5 {[%clk 0:03:06.3]} 12. f3 {[%clk 0:02:54.8]} 12...
h5 {[%clk 0:02:59.7]} 13. f4 {[%clk 0:02:41.9]} 13... Qe7 {[%clk 0:02:52.8]} 14.
exf5 {[%clk 0:02:31.6]} 14... gxf5 {[%clk 0:02:49]} 15. fxe5 {[%clk 0:02:29.8]}
15... dxe5 {[%clk 0:02:47.1]} 16. Qxh5 {[%clk 0:02:29.5]} 16... Nd6 {[%clk
0:02:44.5]} 17. Bh6 {[%clk 0:02:17.5]} 17... Bxh6 {[%clk 0:02:15.2]} 18. Qxh6
{[%clk 0:02:18.4]} 18... Nxc4 {[%clk 0:02:15.2]} 19. d6 {[%clk 0:01:49]} 19...
Nxd6 {[%clk 0:02:03.4]} 20. Nd5 {[%clk 0:01:29.5]} 20... Qg7 {[%clk 0:01:52.2]}
21. Qxd6 {[%clk 0:01:28.3]} 21... c4 {[%clk 0:01:51.6]} 22. Nc5 {[%clk 0:00:58]}
22... Nxc5 {[%clk 0:01:47.7]} 23. Qxc5 {[%clk 0:00:58.9]} 23... Be6 {[%clk
0:01:42.3]} 24. Qd6 {[%clk 0:00:30.9]} 24... Bxd5 {[%clk 0:01:24.8]} 25. Qxd5+
{[%clk 0:00:31.8]} 25... Kh7 {[%clk 0:01:22.6]} 26. Qxc4 {[%clk 0:00:30.3]}
26... Rac8 {[%clk 0:01:18.8]} 27. Qh4+ {[%clk 0:00:28.6]} 27... Kg6 {[%clk
0:01:16.8]} 28. Rad1 {[%clk 0:00:23.3]} 28... Rf6 {[%clk 0:01:09]} 29. g4 {[%clk
0:00:20.5]} 29... Rc7 {[%clk 0:00:59.6]} 30. Qh5# {[%clk 0:00:19.4]} 1-0

[Event "*** Titled Tuesday Blitz"]
[Site "Chess.com"]
[Date "2020.11.10"]
[Round "8"]
[White "Evachess2006"]
[Black "Azoulas1"]
[Result "0-1"]
[WhiteElo "1625"]
[BlackElo "2067"]
[TimeControl "180+1"]
[EndTime "11:32:15 PST"]
[Termination "Azoulas1 won on time"]

1. e4 {[%clk 0:03:00.9]} 1... c5 {[%clk 0:02:59.8]} 2. c3 {[%clk 0:02:47.7]}
2... Nf6 {[%clk 0:02:58.1]} 3. e5 {[%clk 0:02:46.4]} 3... Nd5 {[%clk 0:02:57.8]}
4. d4 {[%clk 0:02:44.4]} 4... cxd4 {[%clk 0:02:57.4]} 5. Nf3 {[%clk 0:02:42.7]}
5... e6 {[%clk 0:02:56.7]} 6. cxd4 {[%clk 0:02:41]} 6... b6 {[%clk 0:02:56.5]}
7. Nc3 {[%clk 0:02:16.7]} 7... Nxc3 {[%clk 0:02:53.4]} 8. bxc3 {[%clk
0:01:41.9]} 8... Qc7 {[%clk 0:02:52.2]} 9. Qc2 {[%clk 0:01:39.3]} 9... d6 {[%clk
0:02:49.6]} 10. Bd3 {[%clk 0:01:30.4]} 10... Nd7 {[%clk 0:02:45.5]} 11. Bf4
{[%clk 0:01:20.4]} 11... dxe5 {[%clk 0:02:36.5]} 12. Nxe5 {[%clk 0:01:08.1]}
12... Bd6 {[%clk 0:02:35.4]} 13. Be4 {[%clk 0:00:57.4]} 13... Rb8 {[%clk
0:02:25.2]} 14. O-O {[%clk 0:00:32.3]} 14... Nxe5 {[%clk 0:02:20.7]} 15. Bxe5
{[%clk 0:00:31.8]} 15... Bxe5 {[%clk 0:02:20.3]} 16. dxe5 {[%clk 0:00:31]} 16...
Bd7 {[%clk 0:02:18.5]} 17. Rfe1 {[%clk 0:00:27.8]} 17... h6 {[%clk 0:02:17.5]}
18. Bf3 {[%clk 0:00:26.9]} 18... O-O {[%clk 0:02:16]} 19. Rab1 {[%clk
0:00:23.8]} 19... Rbc8 {[%clk 0:02:10.5]} 20. Re3 {[%clk 0:00:19.4]} 20... Bc6
{[%clk 0:02:06.9]} 21. Bxc6 {[%clk 0:00:17.3]} 21... Qxc6 {[%clk 0:02:06.3]} 22.
Rb3 {[%clk 0:00:16.6]} 22... Rfd8 {[%clk 0:02:05.1]} 23. h3 {[%clk 0:00:14.8]}
23... a5 {[%clk 0:02:04.8]} 24. a3 {[%clk 0:00:13.4]} 24... Rd5 {[%clk
0:01:59.6]} 25. Kh2 {[%clk 0:00:09.3]} 25... Qc5 {[%clk 0:01:56.1]} 26. Qe4
{[%clk 0:00:06.7]} 26... g6 {[%clk 0:01:43]} 27. c4 {[%clk 0:00:05.5]} 27... Rd4
{[%clk 0:01:39.5]} 28. Qb7 {[%clk 0:00:03]} 28... Rc6 {[%clk 0:01:32.6]} 29.
Qb8+ {[%clk 0:00:02.7]} 29... Kg7 {[%clk 0:01:31.4]} 30. Qa7 {[%clk 0:00:02.9]}
30... Rxc4 {[%clk 0:01:27.9]} 31. a4 {[%clk 0:00:01.5]} 31... Rxa4 {[%clk
0:01:24.2]} 32. Rbc3 {[%clk 0:00:01.1]} 32... Rc4 {[%clk 0:01:22.4]} 0-1

[Event "*** Titled Tuesday Blitz"]
[Site "Chess.com"]
[Date "2020.11.10"]
[Round "8"]
[White "TorFredrikKaasen"]
[Black "juancruzarias"]
[Result "1-0"]
[WhiteElo "2742"]
[BlackElo "2591"]
[TimeControl "180+1"]
[EndTime "11:32:18 PST"]
[Termination "TorFredrikKaasen won by resignation"]

1. d4 {[%clk 0:03:00.9]} 1... e6 {[%clk 0:02:59.7]} 2. c4 {[%clk 0:03:01.4]}
2... Nf6 {[%clk 0:02:59.4]} 3. Nf3 {[%clk 0:03:01.3]} 3... Bb4+ {[%clk
0:02:59.9]} 4. Nbd2 {[%clk 0:02:59.9]} 4... b6 {[%clk 0:02:58.3]} 5. e3 {[%clk
0:02:54.1]} 5... Bb7 {[%clk 0:02:58.5]} 6. a3 {[%clk 0:02:52.2]} 6... Bxd2+
{[%clk 0:02:58]} 7. Qxd2 {[%clk 0:02:53.1]} 7... O-O {[%clk 0:02:56.9]} 8. Be2
{[%clk 0:02:53.3]} 8... d6 {[%clk 0:02:56.6]} 9. O-O {[%clk 0:02:53.4]} 9...
Nbd7 {[%clk 0:02:57.2]} 10. b3 {[%clk 0:02:54]} 10... Ne4 {[%clk 0:02:57.3]} 11.
Qc2 {[%clk 0:02:54.3]} 11... f5 {[%clk 0:02:57.8]} 12. Bb2 {[%clk 0:02:54.7]}
12... Ng5 {[%clk 0:02:54.1]} 13. Qd1 {[%clk 0:02:21.5]} 13... Ne4 {[%clk
0:02:29.9]} 14. d5 {[%clk 0:02:14.3]} 14... e5 {[%clk 0:02:28.4]} 15. b4 {[%clk
0:02:07]} 15... Ng5 {[%clk 0:02:12.6]} 16. Ne1 {[%clk 0:01:46.9]} 16... f4
{[%clk 0:02:00]} 17. exf4 {[%clk 0:01:46.2]} 17... Rxf4 {[%clk 0:01:57.5]} 18.
Nd3 {[%clk 0:01:46.4]} 18... Rf8 {[%clk 0:01:56.1]} 19. f4 {[%clk 0:01:45.3]}
19... exf4 {[%clk 0:01:53.5]} 20. Nxf4 {[%clk 0:01:43.7]} 20... Ne5 {[%clk
0:01:52.8]} 21. Qc2 {[%clk 0:01:23.3]} 21... Qe7 {[%clk 0:01:35.9]} 22. Rae1
{[%clk 0:01:16.4]} 22... Rae8 {[%clk 0:01:35.9]} 23. h4 {[%clk 0:01:09.2]} 23...
Ngf7 {[%clk 0:01:36.2]} 24. Ne6 {[%clk 0:01:06.7]} 24... Qxh4 {[%clk 0:01:36.2]}
25. Nxf8 {[%clk 0:01:04.6]} 25... Rxf8 {[%clk 0:01:36.5]} 26. Bd1 {[%clk
0:00:54.5]} 26... Bc8 {[%clk 0:01:36]} 27. Re4 {[%clk 0:00:47.3]} 27... Qh6
{[%clk 0:01:30.1]} 28. Ref4 {[%clk 0:00:45.5]} 28... Ng6 {[%clk 0:01:20.1]} 29.
R4f2 {[%clk 0:00:35.4]} 29... Qe3 {[%clk 0:01:19.5]} 30. Re1 {[%clk 0:00:31.6]}
30... Qg3 {[%clk 0:01:19.3]} 31. Ref1 {[%clk 0:00:20.9]} 31... Bd7 {[%clk
0:01:11.1]} 32. Qc3 {[%clk 0:00:20.7]} 32... Nge5 {[%clk 0:01:10.2]} 33. Qxg3
{[%clk 0:00:20.3]} 1-0

[Event "*** Titled Tuesday Blitz"]
[Site "Chess.com"]
[Date "2020.11.10"]
[Round "8"]
[White "nochewycandy"]
[Black "AttractiveMustard"]
[Result "1-0"]
[WhiteElo "2537"]
[BlackElo "2396"]
[TimeControl "180+1"]
[EndTime "11:32:19 PST"]
[Termination "nochewycandy won on time"]

1. e4 {[%clk 0:03:00.9]} 1... c6 {[%clk 0:02:58.3]} 2. Nc3 {[%clk 0:03:00.2]}
2... d5 {[%clk 0:02:58.3]} 3. Nf3 {[%clk 0:03:01.1]} 3... Bg4 {[%clk 0:02:58]}
4. Be2 {[%clk 0:03:00.8]} 4... e6 {[%clk 0:02:55.6]} 5. h3 {[%clk 0:03:00.3]}
5... Bh5 {[%clk 0:02:46.9]} 6. d4 {[%clk 0:02:57.7]} 6... Nf6 {[%clk 0:02:41.5]}
7. e5 {[%clk 0:02:57.6]} 7... Nfd7 {[%clk 0:02:40.7]} 8. Ng5 {[%clk 0:02:57.7]}
8... Bxe2 {[%clk 0:02:33]} 9. Qxe2 {[%clk 0:02:58.6]} 9... Be7 {[%clk
0:02:27.8]} 10. h4 {[%clk 0:02:50]} 10... c5 {[%clk 0:02:14.3]} 11. dxc5 {[%clk
0:02:34.9]} 11... Nc6 {[%clk 0:02:13.2]} 12. Bf4 {[%clk 0:02:30.6]} 12... h6
{[%clk 0:01:45.5]} 13. Nf3 {[%clk 0:02:19.9]} 13... Nxc5 {[%clk 0:01:42.4]} 14.
O-O-O {[%clk 0:02:18.4]} 14... Qa5 {[%clk 0:01:31.2]} 15. Nd4 {[%clk 0:02:13.3]}
15... Rc8 {[%clk 0:01:21.2]} 16. Kb1 {[%clk 0:02:09.1]} 16... a6 {[%clk
0:01:15.1]} 17. Rh3 {[%clk 0:02:07.9]} 17... Nxd4 {[%clk 0:01:08.4]} 18. Rxd4
{[%clk 0:02:06.5]} 18... b5 {[%clk 0:01:08.3]} 19. b4 {[%clk 0:01:53.2]} 19...
Na4 {[%clk 0:00:51.3]} 20. bxa5 {[%clk 0:01:53.1]} 20... Nxc3+ {[%clk
0:00:37.7]} 21. Rxc3 {[%clk 0:01:52.8]} 21... Rxc3 {[%clk 0:00:38.6]} 22. Rd3
{[%clk 0:01:43.7]} 22... Rc4 {[%clk 0:00:36.9]} 23. Bd2 {[%clk 0:01:44.1]} 23...
Rxh4 {[%clk 0:00:35.4]} 24. Rc3 {[%clk 0:01:35.7]} 24... O-O {[%clk 0:00:33.1]}
25. a3 {[%clk 0:01:23]} 25... Rb8 {[%clk 0:00:13.9]} 26. Rh3 {[%clk 0:01:18.9]}
26... Rc4 {[%clk 0:00:11.6]} 27. Rg3 {[%clk 0:01:11.8]} 27... Kh7 {[%clk
0:00:10.1]} 28. Qd3+ {[%clk 0:01:12.1]} 28... g6 {[%clk 0:00:09.8]} 29. Rh3
{[%clk 0:01:11.4]} 29... Bf8 {[%clk 0:00:08.8]} 30. Bxh6 {[%clk 0:01:08.8]}
30... Bxh6 {[%clk 0:00:02.5]} 31. Qe3 {[%clk 0:01:09]} 1-0

[Event "*** Titled Tuesday Blitz"]
[Site "Chess.com"]
[Date "2020.11.10"]
[Round "8"]
[White "Nara_Kh"]
[Black "blitzking1729"]
[Result "0-1"]
[WhiteElo "2374"]
[BlackElo "2548"]
[TimeControl "180+1"]
[EndTime "11:32:21 PST"]
[Termination "blitzking1729 won by resignation"]

1. e4 {[%clk 0:03:00.9]} 1... Nf6 {[%clk 0:02:54.6]} 2. e5 {[%clk 0:03:00.4]}
2... Nd5 {[%clk 0:02:54.8]} 3. d4 {[%clk 0:03:00.3]} 3... d6 {[%clk 0:02:54.4]}
4. Nf3 {[%clk 0:03:00.3]} 4... dxe5 {[%clk 0:02:53.9]} 5. Nxe5 {[%clk
0:03:00.2]} 5... g6 {[%clk 0:02:54.2]} 6. Be2 {[%clk 0:02:56.8]} 6... Bg7 {[%clk
0:02:53.9]} 7. O-O {[%clk 0:02:56.8]} 7... O-O {[%clk 0:02:52.5]} 8. c4 {[%clk
0:02:53]} 8... Nf6 {[%clk 0:02:49.6]} 9. Nc3 {[%clk 0:02:51.6]} 9... c6 {[%clk
0:02:49.2]} 10. Bg5 {[%clk 0:02:43.7]} 10... Nbd7 {[%clk 0:02:47.9]} 11. Nd3
{[%clk 0:02:07.8]} 11... Nb6 {[%clk 0:02:44.6]} 12. Ne5 {[%clk 0:02:00.8]} 12...
Be6 {[%clk 0:02:43.3]} 13. Rc1 {[%clk 0:01:58.7]} 13... Nbd7 {[%clk 0:02:41.7]}
14. f4 {[%clk 0:01:52.2]} 14... Nxe5 {[%clk 0:02:37]} 15. fxe5 {[%clk
0:01:50.3]} 15... Nd7 {[%clk 0:02:36.2]} 16. d5 {[%clk 0:01:31.7]} 16... cxd5
{[%clk 0:02:35.5]} 17. cxd5 {[%clk 0:01:31.8]} 17... Bf5 {[%clk 0:02:32.8]} 18.
d6 {[%clk 0:00:59.2]} 18... Qb6+ {[%clk 0:02:28.9]} 19. Kh1 {[%clk 0:00:58.9]}
19... exd6 {[%clk 0:02:28.6]} 20. Nd5 {[%clk 0:00:52.2]} 20... Qxb2 {[%clk
0:02:18.8]} 21. exd6 {[%clk 0:00:46]} 21... Kh8 {[%clk 0:02:11.3]} 22. Qa4
{[%clk 0:00:42.5]} 22... Qxe2 {[%clk 0:02:09]} 23. Rxf5 {[%clk 0:00:37.6]} 23...
b5 {[%clk 0:01:57.3]} 24. Qf4 {[%clk 0:00:11.3]} 24... gxf5 {[%clk 0:01:55.6]}
25. Qxf5 {[%clk 0:00:11.7]} 25... Qe6 {[%clk 0:01:54.7]} 26. Qd3 {[%clk
0:00:10.1]} 26... Ne5 {[%clk 0:01:50.7]} 27. Qe4 {[%clk 0:00:10.1]} 27... Nc4
{[%clk 0:01:49]} 28. Qxe6 {[%clk 0:00:08.9]} 28... fxe6 {[%clk 0:01:48.7]} 29.
Nc7 {[%clk 0:00:09.8]} 29... Nxd6 {[%clk 0:01:46]} 30. Nxa8 {[%clk 0:00:09.7]}
30... Rxa8 {[%clk 0:01:46.9]} 31. Bf4 {[%clk 0:00:09.7]} 31... Nc4 {[%clk
0:01:46.7]} 32. Re1 {[%clk 0:00:09.6]} 32... e5 {[%clk 0:01:46.4]} 33. Bg5
{[%clk 0:00:10]} 33... a5 {[%clk 0:01:45.3]} 34. Re2 {[%clk 0:00:09.9]} 34... b4
{[%clk 0:01:43.2]} 35. g3 {[%clk 0:00:10.3]} 35... a4 {[%clk 0:01:42]} 36. Be7
{[%clk 0:00:10.5]} 36... b3 {[%clk 0:01:41.8]} 37. axb3 {[%clk 0:00:11]} 37...
axb3 {[%clk 0:01:42.7]} 38. Kg2 {[%clk 0:00:11.5]} 38... b2 {[%clk 0:01:42.4]}
39. Re1 {[%clk 0:00:11.2]} 39... Ra1 {[%clk 0:01:39.5]} 0-1

[Event "*** Titled Tuesday Blitz"]
[Site "Chess.com"]
[Date "2020.11.10"]
[Round "8"]
[White "26andrej26"]
[Black "Trickov"]
[Result "1/2-1/2"]
[WhiteElo "2538"]
[BlackElo "2358"]
[TimeControl "180+1"]
[EndTime "11:32:22 PST"]
[Termination "Game drawn by repetition"]

1. e4 {[%clk 0:03:00.9]} 1... c5 {[%clk 0:02:55.2]} 2. Nf3 {[%clk 0:03:01.1]}
2... d6 {[%clk 0:02:53.7]} 3. d4 {[%clk 0:03:01.7]} 3... Nf6 {[%clk 0:02:53.3]}
4. Nc3 {[%clk 0:03:01.9]} 4... cxd4 {[%clk 0:02:53.2]} 5. Nxd4 {[%clk
0:03:02.8]} 5... a6 {[%clk 0:02:53.6]} 6. Bc4 {[%clk 0:03:03]} 6... e6 {[%clk
0:02:51.8]} 7. Bb3 {[%clk 0:03:03.3]} 7... b5 {[%clk 0:02:51.3]} 8. O-O {[%clk
0:03:02]} 8... Bb7 {[%clk 0:02:51.5]} 9. f4 {[%clk 0:02:59.9]} 9... Nc6 {[%clk
0:02:49.9]} 10. f5 {[%clk 0:02:56.9]} 10... Nxd4 {[%clk 0:02:46.4]} 11. Qxd4
{[%clk 0:02:57.4]} 11... e5 {[%clk 0:02:46.3]} 12. Qd3 {[%clk 0:02:57.9]} 12...
h6 {[%clk 0:02:34]} 13. Nd5 {[%clk 0:02:47.1]} 13... Bxd5 {[%clk 0:02:30.3]} 14.
Bxd5 {[%clk 0:02:48]} 14... Nxd5 {[%clk 0:02:29.5]} 15. Qxd5 {[%clk 0:02:48.9]}
15... Be7 {[%clk 0:02:29.7]} 16. Be3 {[%clk 0:02:46.9]} 16... O-O {[%clk
0:02:28.5]} 17. c3 {[%clk 0:02:46.4]} 17... Rc8 {[%clk 0:02:02]} 18. a4 {[%clk
0:02:45.7]} 18... Qd7 {[%clk 0:01:41.6]} 19. Rfd1 {[%clk 0:02:35.6]} 19... bxa4
{[%clk 0:01:36.1]} 20. Qxe5 {[%clk 0:02:28.1]} 20... Rfe8 {[%clk 0:01:23.8]} 21.
Qd4 {[%clk 0:02:25.2]} 21... Qb5 {[%clk 0:01:16.8]} 22. Qxa4 {[%clk 0:02:14.7]}
22... Qxb2 {[%clk 0:01:14.4]} 23. Bd4 {[%clk 0:02:15]} 23... Bf6 {[%clk
0:01:02.4]} 24. Bxf6 {[%clk 0:01:57.4]} 24... gxf6 {[%clk 0:01:02]} 25. Qxa6
{[%clk 0:01:33.6]} 25... Qxc3 {[%clk 0:00:54.5]} 26. Qxd6 {[%clk 0:01:26.9]}
26... Rxe4 {[%clk 0:00:49.8]} 27. Ra3 {[%clk 0:01:21.2]} 27... Qc5+ {[%clk
0:00:48.5]} 28. Qxc5 {[%clk 0:01:21.1]} 28... Rxc5 {[%clk 0:00:48.7]} 29. Rf3
{[%clk 0:01:14]} 29... Ree5 {[%clk 0:00:47.5]} 30. Rdf1 {[%clk 0:01:13.6]} 30...
Kh7 {[%clk 0:00:47]} 31. g3 {[%clk 0:01:08]} 31... h5 {[%clk 0:00:45.5]} 32.
R1f2 {[%clk 0:01:02.8]} 32... Kh6 {[%clk 0:00:45.7]} 33. Kg2 {[%clk 0:01:03.1]}
33... Kg5 {[%clk 0:00:45.9]} 34. h4+ {[%clk 0:01:03.2]} 34... Kh6 {[%clk
0:00:43.3]} 35. Rf4 {[%clk 0:01:03.6]} 35... Red5 {[%clk 0:00:42.7]} 36. R4f3
{[%clk 0:01:03.7]} 36... Re5 {[%clk 0:00:43]} 37. Rf4 {[%clk 0:01:04.3]} 37...
Red5 {[%clk 0:00:43.3]} 38. R4f3 {[%clk 0:00:50.4]} 38... Re5 {[%clk 0:00:43.7]}
1/2-1/2

[Event "*** Titled Tuesday Blitz"]
[Site "Chess.com"]
[Date "2020.11.10"]
[Round "8"]
[White "Forantes"]
[Black "HouseOfDurin"]
[Result "1-0"]
[WhiteElo "2341"]
[BlackElo "2169"]
[TimeControl "180+1"]
[EndTime "11:32:22 PST"]
[Termination "Forantes won on time"]

1. Nf3 {[%clk 0:03:00.9]} 1... c5 {[%clk 0:02:59.7]} 2. g3 {[%clk 0:03:00.1]}
2... Nc6 {[%clk 0:03:00.2]} 3. d4 {[%clk 0:02:59.9]} 3... cxd4 {[%clk
0:02:59.2]} 4. Nxd4 {[%clk 0:03:00.8]} 4... g6 {[%clk 0:02:59.8]} 5. Bg2 {[%clk
0:03:00.3]} 5... Bg7 {[%clk 0:02:59.9]} 6. Nb3 {[%clk 0:03:00.8]} 6... Nf6
{[%clk 0:02:52.2]} 7. O-O {[%clk 0:03:01.2]} 7... O-O {[%clk 0:02:51.6]} 8. Re1
{[%clk 0:03:01.3]} 8... d5 {[%clk 0:02:44.5]} 9. Nc3 {[%clk 0:03:00.8]} 9... e6
{[%clk 0:02:42.2]} 10. a4 {[%clk 0:02:59.8]} 10... h6 {[%clk 0:02:36.5]} 11. e4
{[%clk 0:02:59.3]} 11... dxe4 {[%clk 0:02:34.6]} 12. Nxe4 {[%clk 0:02:59.4]}
12... Nxe4 {[%clk 0:02:16.9]} 13. Bxe4 {[%clk 0:02:26.5]} 13... Qxd1 {[%clk
0:02:04.5]} 14. Rxd1 {[%clk 0:02:27.4]} 14... Nd4 {[%clk 0:02:04.7]} 15. Nxd4
{[%clk 0:02:27]} 15... e5 {[%clk 0:01:56.4]} 16. Ne2 {[%clk 0:02:25.3]} 16...
Bg4 {[%clk 0:01:55.2]} 17. f3 {[%clk 0:02:25]} 17... Be6 {[%clk 0:01:37.3]} 18.
Be3 {[%clk 0:02:24.5]} 18... f5 {[%clk 0:01:33.9]} 19. Bd5 {[%clk 0:02:23.4]}
19... Bxd5 {[%clk 0:01:31.4]} 20. Rxd5 {[%clk 0:02:24.3]} 20... Rad8 {[%clk
0:01:19.3]} 21. Rad1 {[%clk 0:02:22.8]} 21... Rxd5 {[%clk 0:01:17.8]} 22. Rxd5
{[%clk 0:02:23.7]} 22... a6 {[%clk 0:01:09.6]} 23. Rd7 {[%clk 0:02:22.8]} 23...
Rf7 {[%clk 0:01:09.7]} 24. Rxf7 {[%clk 0:02:22.4]} 24... Kxf7 {[%clk 0:01:10.6]}
25. Nc3 {[%clk 0:02:23]} 25... Ke6 {[%clk 0:01:10.3]} 26. Kf2 {[%clk 0:02:23.5]}
26... g5 {[%clk 0:01:06.4]} 27. Ke2 {[%clk 0:02:23.5]} 27... f4 {[%clk
0:01:05.9]} 28. Bf2 {[%clk 0:02:23.8]} 28... Bf8 {[%clk 0:00:58.7]} 29. Kd3
{[%clk 0:02:22.9]} 29... fxg3 {[%clk 0:00:53.2]} 30. hxg3 {[%clk 0:02:23.2]}
30... h5 {[%clk 0:00:53.4]} 31. Ke4 {[%clk 0:02:22.9]} 31... Be7 {[%clk
0:00:48.5]} 32. Nd5 {[%clk 0:02:22.9]} 32... Bd8 {[%clk 0:00:48.4]} 33. Ne3
{[%clk 0:02:23]} 33... h4 {[%clk 0:00:47.3]} 34. gxh4 {[%clk 0:02:23]} 34...
gxh4 {[%clk 0:00:48.2]} 35. Bg1 {[%clk 0:02:22.9]} 35... h3 {[%clk 0:00:47.3]}
36. Bh2 {[%clk 0:02:23.4]} 36... Bg5 {[%clk 0:00:39.5]} 37. Ng4 {[%clk
0:02:22.3]} 37... Bc1 {[%clk 0:00:32.3]} 38. b3 {[%clk 0:02:21.8]} 38... Bb2
{[%clk 0:00:32.3]} 39. Nxe5 {[%clk 0:02:20.8]} 39... b5 {[%clk 0:00:27.4]} 40.
axb5 {[%clk 0:02:20.5]} 40... axb5 {[%clk 0:00:28.3]} 41. Nd3 {[%clk 0:02:20.9]}
41... Bf6 {[%clk 0:00:20.2]} 42. Nf4+ {[%clk 0:02:21]} 42... Kd7 {[%clk
0:00:16.2]} 43. Nxh3 {[%clk 0:02:21.9]} 43... Kc6 {[%clk 0:00:15.6]} 44. Be5
{[%clk 0:02:22]} 44... Be7 {[%clk 0:00:15.6]} 45. Bd4 {[%clk 0:02:21.9]} 45...
b4 {[%clk 0:00:13.4]} 46. Nf4 {[%clk 0:02:22.2]} 46... Kb5 {[%clk 0:00:12.6]}
47. Nd3 {[%clk 0:02:22.2]} 47... Bd6 {[%clk 0:00:12.4]} 48. f4 {[%clk
0:02:19.2]} 48... Bf8 {[%clk 0:00:11.9]} 49. f5 {[%clk 0:02:18.9]} 49... Kc6
{[%clk 0:00:11.9]} 50. Ke5 {[%clk 0:02:18.8]} 50... Bg7+ {[%clk 0:00:10.7]} 51.
Ke4 {[%clk 0:02:18.6]} 51... Bf8 {[%clk 0:00:10.5]} 52. f6 {[%clk 0:02:18]}
52... Kd7 {[%clk 0:00:09.1]} 53. Kd5 {[%clk 0:02:16.9]} 53... Ke8 {[%clk
0:00:05.5]} 54. Ne5 {[%clk 0:02:16.9]} 1-0

[Event "*** Titled Tuesday Blitz"]
[Site "Chess.com"]
[Date "2020.11.10"]
[Round "8"]
[White "vovachesss"]
[Black "Onischuk_V"]
[Result "1-0"]
[WhiteElo "2686"]
[BlackElo "2848"]
[TimeControl "180+1"]
[EndTime "11:32:24 PST"]
[Termination "vovachesss won by checkmate"]

1. e4 {[%clk 0:03:00.9]} 1... e5 {[%clk 0:03:00.1]} 2. Nf3 {[%clk 0:02:58.7]}
2... Nc6 {[%clk 0:03:00]} 3. Nc3 {[%clk 0:02:59.3]} 3... Nf6 {[%clk 0:02:57.8]}
4. d4 {[%clk 0:02:59.9]} 4... exd4 {[%clk 0:02:57.6]} 5. Nxd4 {[%clk 0:03:00.8]}
5... Bb4 {[%clk 0:02:54.4]} 6. Nxc6 {[%clk 0:03:01.2]} 6... bxc6 {[%clk
0:02:54]} 7. Bd3 {[%clk 0:03:01.4]} 7... d5 {[%clk 0:02:53.1]} 8. exd5 {[%clk
0:03:01.5]} 8... cxd5 {[%clk 0:02:53.5]} 9. O-O {[%clk 0:03:02.1]} 9... O-O
{[%clk 0:02:53.1]} 10. h3 {[%clk 0:03:02.8]} 10... c6 {[%clk 0:02:49.7]} 11. Qf3
{[%clk 0:03:03.4]} 11... h6 {[%clk 0:02:46.4]} 12. Bf4 {[%clk 0:03:02.1]} 12...
Bd6 {[%clk 0:02:45.9]} 13. Rfe1 {[%clk 0:03:00.9]} 13... Be6 {[%clk 0:02:41.8]}
14. Ne2 {[%clk 0:03:00.4]} 14... c5 {[%clk 0:02:39.7]} 15. c3 {[%clk 0:02:58.5]}
15... Re8 {[%clk 0:02:35.5]} 16. Rad1 {[%clk 0:02:57.2]} 16... Qb6 {[%clk
0:02:29.9]} 17. Bxh6 {[%clk 0:02:19.5]} 17... Qxb2 {[%clk 0:02:19.9]} 18. Bg5
{[%clk 0:01:46.5]} 18... Ne4 {[%clk 0:02:15.5]} 19. Bxe4 {[%clk 0:01:22.1]}
19... dxe4 {[%clk 0:02:15.2]} 20. Qh5 {[%clk 0:01:07]} 20... Be5 {[%clk
0:02:06.3]} 21. Nf4 {[%clk 0:00:54.1]} 21... Bxc3 {[%clk 0:01:54]} 22. Rxe4
{[%clk 0:00:49.4]} 22... Bxa2 {[%clk 0:01:53.8]} 23. Nd3 {[%clk 0:00:26.3]}
23... Qb5 {[%clk 0:01:36.4]} 24. Rh4 {[%clk 0:00:25.7]} 24... f6 {[%clk
0:01:29]} 25. Qh7+ {[%clk 0:00:11.3]} 25... Kf7 {[%clk 0:01:29]} 26. Bh6 {[%clk
0:00:11.4]} 26... Rg8 {[%clk 0:01:17.8]} 27. Rg4 {[%clk 0:00:11.9]} 27... Bb3
{[%clk 0:01:07.5]} 28. Rxg7+ {[%clk 0:00:11.3]} 28... Rxg7 {[%clk 0:01:07.8]}
29. Qxg7+ {[%clk 0:00:11.7]} 29... Ke6 {[%clk 0:01:08.2]} 30. Nf4+ {[%clk
0:00:12.3]} 30... Kf5 {[%clk 0:01:01.3]} 31. Qg4+ {[%clk 0:00:12.2]} 31... Ke5
{[%clk 0:01:01.6]} 32. Ng6# {[%clk 0:00:09.3]} 1-0

[Event "*** Titled Tuesday Blitz"]
[Site "Chess.com"]
[Date "2020.11.10"]
[Round "8"]
[White "frederiksvane"]
[Black "chenxiaoyuer"]
[Result "1-0"]
[WhiteElo "2710"]
[BlackElo "2536"]
[TimeControl "180+1"]
[EndTime "11:32:25 PST"]
[Termination "frederiksvane won by resignation"]

1. e4 {[%clk 0:03:00.9]} 1... c5 {[%clk 0:02:58.4]} 2. Nf3 {[%clk 0:03:00.9]}
2... d6 {[%clk 0:02:57.9]} 3. d4 {[%clk 0:02:59.4]} 3... cxd4 {[%clk 0:02:58.3]}
4. Nxd4 {[%clk 0:03:00.3]} 4... Nf6 {[%clk 0:02:58]} 5. f3 {[%clk 0:03:00.8]}
5... e5 {[%clk 0:02:56.4]} 6. Nb3 {[%clk 0:03:00.3]} 6... d5 {[%clk 0:02:55.6]}
7. Bg5 {[%clk 0:03:00.1]} 7... Be6 {[%clk 0:02:54.7]} 8. Bxf6 {[%clk 0:02:52.8]}
8... gxf6 {[%clk 0:02:55.1]} 9. Bb5+ {[%clk 0:02:51.7]} 9... Nc6 {[%clk
0:02:51.2]} 10. exd5 {[%clk 0:02:51.7]} 10... Qxd5 {[%clk 0:02:48.2]} 11. Qxd5
{[%clk 0:02:47.4]} 11... Bxd5 {[%clk 0:02:49.1]} 12. Nc3 {[%clk 0:02:47.6]}
12... Be6 {[%clk 0:02:47.9]} 13. Na5 {[%clk 0:02:35.6]} 13... Bd7 {[%clk
0:01:45.6]} 14. O-O-O {[%clk 0:02:19.2]} 14... Bb4 {[%clk 0:01:36.6]} 15. Nxb7
{[%clk 0:01:37.2]} 15... Rb8 {[%clk 0:01:19]} 16. Nd6+ {[%clk 0:01:35.4]} 16...
Ke7 {[%clk 0:01:15]} 17. Nd5+ {[%clk 0:01:23.6]} 17... Ke6 {[%clk 0:00:37.4]}
18. Ne4 {[%clk 0:01:18]} 18... Rhc8 {[%clk 0:00:24.2]} 19. Ba4 {[%clk
0:00:39.4]} 19... Nd4 {[%clk 0:00:11.8]} 20. Bxd7+ {[%clk 0:00:35.6]} 20... Kxd7
{[%clk 0:00:12.7]} 21. Nxb4 {[%clk 0:00:35.9]} 21... Rxb4 {[%clk 0:00:11]} 22.
c3 {[%clk 0:00:36.2]} 22... Rbc4 {[%clk 0:00:11.2]} 23. Kb1 {[%clk 0:00:35.7]}
23... Ke6 {[%clk 0:00:12.1]} 24. cxd4 {[%clk 0:00:36]} 1-0